bitfinex/quotes_ETHUSD_20250603
["timestamp","ask_amount","ask_price","bid_price","bid_amount"]
[1748959471227,11.99064252,2622.5,2621.5,3.81453638]
[1748959471427,1.39186425,2622.4,2621.1,8.02]
[1748959471629,1.39186425,2622.4,2621.5,3.81453252]
[1748959471833,3.81390321,2622.0,2621.5,3.81454592]
[1748959472039,3.81390321,2622.0,2621.1,8.40277438]
[1748959472040,3.81380225,2622.1,2621.6,3.81443872]
[1748959472217,3.81381622,2622.1,2621.1,12.21795387]
[1748959472541,3.81439683,2621.7,2621.2,5.9388816]
[1748959472726,3.81432764,2621.7,2621.2,3.81495658]
[1748959472927,0.55,2622.3,2621.1,0.02]
[1748959473135,3.81359164,2622.2,2621.2,3.81496885]
[1748959473333,3.81395582,2622.0,2621.3,3.814901]
[1748959473534,1.961,2622.2,2621.4,1.23254831]
[1748959473708,5.77464422,2622.2,2621.1,8.53058214]
[1748959473913,3.81373708,2622.1,2621.4,3.81465457]
[1748959474165,1.961,2622.2,2621.1,0.02]
[1748959474513,3.81419705,2621.8,2621.1,0.02]
[1748959474819,3.81416127,2621.9,2621.3,3.81480052]
[1748959475034,10.61593578,2622.0,2621.4,3.81465339]
[1748959475238,1.961,2622.1,2621.3,0.76498974]
[1748959475445,1.961,2622.1,2621.7,3.81424853]
[1748959475653,3.81332143,2622.4,2621.6,3.81432117]
[1748959475847,15.52255998,2622.7,2621.6,3.81432117]
[1748959475848,3.81352362,2622.3,2621.8,3.81405712]
[1748959476049,6.799,2622.5,2622.0,3.81380542]
[1748959476361,1.961,2622.5,2621.4,3.81468396]
[1748959476533,1.961,2622.5,2621.5,8.0]
[1748959476738,5.77422463,2622.5,2622.0,3.81386861]
[1748959477165,5.77422463,2622.5,2622.0,3.81386952]
[1748959477373,5.77422463,2622.5,2622.1,3.81363562]
[1748959477374,1.961,2622.5,2622.1,3.81363562]
[1748959477662,1.961,2622.5,2621.9,3.81397891]
[1748959477966,3.81316603,2622.5,2622.0,3.8138053]
[1748959478260,13.719,2622.7,2621.4,8.0]
[1748959478434,13.719,2622.7,2621.3,0.76498974]
[1748959478435,0.55,2622.4,2621.3,0.76498974]
[1748959478639,3.81429214,2621.8,2621.3,3.81483721]
[1748959478840,3.81429214,2621.8,2621.2,3.8149775]
[1748959479160,3.81429214,2621.8,2621.2,3.81504654]
[1748959479367,3.81393355,2622.0,2621.3,3.81489115]
[1748959479663,3.81418809,2621.8,2621.3,3.81489115]
[1748959480021,0.57749336,2621.9,2621.1,0.02]
[1748959480224,6.795,2621.9,2621.3,3.81477461]
[1748959480445,10.60909639,2621.9,2621.3,3.81477461]
[1748959480788,10.60910326,2621.9,2621.4,3.81472846]
[1748959480949,6.795,2621.9,2621.1,0.02]
[1748959481151,6.795,2621.9,2621.5,3.81454578]
[1748959481350,10.60907203,2621.9,2621.4,3.81468056]
[1748959481551,6.795,2621.9,2621.5,3.81449881]
[1748959481883,6.788,2621.9,2621.6,3.81446269]
[1748959482189,6.785,2622.0,2621.6,3.81446269]
[1748959482386,6.785,2622.0,2621.5,3.81458949]
[1748959482546,3.8136558,2622.2,2621.5,4.19604844]
[1748959482746,6.783,2622.1,2621.3,3.81478111]
[1748959482961,3.81412724,2621.9,2621.1,0.02]
[1748959483249,1.3719,2622.6,2621.5,8.51058214]
[1748959483449,1.961,2622.4,2622.2,3.81357396]
[1748959483688,1.961,2622.4,2622.0,3.8137825]
[1748959483887,5.77431711,2622.4,2621.7,3.81427938]
[1748959484188,5.77436382,2622.4,2621.9,3.81402649]
[1748959484682,3.81352339,2622.3,2621.6,0.85105821]
[1748959484887,5.06939855,2622.3,2621.2,8.0]
[1748959485052,1.25595234,2622.3,2621.8,3.81409657]
[1748959485247,1.25595234,2622.3,2622.0,3.81384799]
[1748959485590,20.498,2622.7,2621.8,3.81407839]
[1748959485787,3.81347457,2622.3,2621.8,3.81409777]
[1748959485971,3.81347457,2622.3,2621.5,8.51058214]
[1748959485972,3.81333085,2622.4,2621.9,3.81398554]
[1748959486173,20.498,2622.7,2621.5,8.51058214]
[1748959486492,2.2459,2622.6,2621.6,1.23252727]
[1748959486798,3.81330079,2622.4,2621.0,5.67703358]
[1748959486953,3.81415102,2621.9,2621.3,3.81480679]
[1748959487301,3.81420313,2621.8,2621.1,3.81510867]
[1748959487468,3.81417159,2621.9,2621.3,3.81482573]
[1748959487714,4.19566092,2621.8,2621.3,3.81489792]
[1748959487884,3.81439169,2621.7,2621.2,3.81504587]
[1748959488083,3.81437107,2621.7,2621.2,3.81502525]
[1748959488293,4.19567169,2621.8,2621.3,3.81487432]
[1748959488489,6.774,2621.9,2621.5,3.81460225]
[1748959488652,6.774,2621.9,2621.0,9.49236481]
[1748959488653,3.81418729,2621.8,2621.0,5.67703358]
[1748959488853,3.81435945,2621.7,2621.2,3.81500978]
[1748959489052,3.81360027,2622.2,2621.1,0.60549112]
[1748959489053,10.2459,2622.6,2621.1,0.60549112]
[1748959489277,3.81375951,2622.1,2621.6,3.81433401]
[1748959489481,3.81392189,2622.0,2621.5,3.81457962]
[1748959489991,3.81392172,2622.0,2621.5,3.81457946]
[1748959490190,3.81378812,2622.1,2621.6,3.81444583]
[1748959490391,10.2459,2622.6,2621.5,0.76292525]
[1748959490392,3.81406881,2621.9,2621.5,0.76292525]
[1748959490592,3.81393829,2622.0,2621.5,0.76292525]
[1748959490787,0.8122,2621.8,2621.5,0.76292525]
[1748959491078,0.8122,2621.8,2621.5,4.57752083]
[1748959491418,0.8122,2621.8,2621.5,4.57742469]
[1748959491579,0.8122,2621.8,2621.5,4.57744321]
[1748959491933,0.8122,2621.8,2621.5,3.81453631]
[1748959492080,0.8122,2621.8,2621.2,3.81504654]
[1748959492276,0.8122,2622.2,2621.4,8.51058214]
[1748959492533,0.8122,2622.2,2621.8,3.81416836]
[1748959492823,0.8122,2622.2,2621.4,8.51058214]
[1748959492983,3.81381419,2622.1,2621.6,3.81438461]
[1748959493316,3.81395202,2622.0,2621.5,4.66560695]
[1748959494305,3.81404661,2621.9,2621.4,3.81469161]
[1748959494492,0.8122,2622.2,2621.4,3.81469161]
[1748959494493,3.81396547,2622.0,2621.4,3.81469161]
[1748959494696,3.81396547,2622.0,2621.5,3.81460383]
[1748959495031,3.81388253,2622.0,2621.5,3.81450235]
[1748959496192,6.768,2622.1,2621.1,8.60549112]
[1748959496398,11.38885804,2622.2,2621.7,3.81422992]
[1748959497221,11.38879495,2622.2,2621.7,3.81423551]
[1748959497413,3.81395807,2622.0,2621.5,3.81454185]
[1748959497612,3.81395807,2622.0,2621.5,3.81460296]
[1748959497783,3.8138827,2622.0,2621.5,3.81460296]
[1748959497987,10.57665366,2622.2,2621.1,12.42066846]
[1748959497988,6.763,2622.2,2621.1,0.60549112]
[1748959498189,3.81398087,2622.0,2621.5,3.81454638]
[1748959498388,3.81377996,2622.1,2621.6,3.81441941]
[1748959498931,3.81391157,2622.0,2621.5,4.42308526]
[1748959499638,13.719,2622.7,2622.0,3.81379974]
[1748959499789,1.57,2622.7,2621.8,0.60853422]
[1748959499990,6.754,2622.6,2622.0,3.81380553]
[1748959500226,10.56705644,2622.6,2622.0,0.60853422]
[1748959500440,6.751,2622.7,2622.1,1.05078565]
[1748959500619,5.77373248,2622.8,2622.3,3.81335372]
[1748959500805,6.751,2622.7,2622.2,0.60853422]
[1748959501129,0.02,2622.9,2622.4,4.42181346]
[1748959501428,0.02,2622.9,2622.8,4.42125345]
[1748959501630,0.02,2622.9,2622.8,4.63612887]
[1748959501788,0.02,2622.9,2622.7,0.60853422]
[1748959501995,3.83263391,2622.9,2622.6,0.60853422]
[1748959502290,0.02,2622.9,2622.8,3.81271923]
[1748959502494,0.02,2622.9,2622.6,4.42145412]
[1748959502690,0.02,2622.9,2622.7,3.81279791]
[1748959502888,0.02,2622.9,2622.8,3.81271923]
[1748959503133,0.02,2622.9,2622.7,1.62344472]
[1748959503307,0.02,2622.9,2622.6,11.81294204]
[1748959503631,0.02,2622.9,2622.4,0.60853422]
[1748959503838,0.02,2622.9,2622.6,3.81296404]
[1748959504000,0.02,2622.9,2622.5,8.60853422]
[1748959504195,0.02,2622.9,2622.5,0.60853422]
[1748959504499,0.02,2622.9,2622.7,3.81284669]
[1748959504699,0.02,2622.9,2622.7,4.25498478]
[1748959504895,0.02,2622.9,2622.8,3.81271923]
[1748959505211,0.02,2622.9,2622.7,4.25497006]
[1748959505610,0.02,2622.9,2622.8,3.81271923]
[1748959505831,0.02,2622.9,2622.7,0.44213809]
[1748959506039,0.02,2622.9,2622.5,0.60853422]
[1748959506413,0.02,2622.9,2622.7,3.81276173]
[1748959506838,0.02,2622.9,2622.4,0.60853422]
[1748959507039,0.02,2622.9,2622.0,0.60853422]
[1748959507040,3.81271923,2622.8,2622.0,0.60853422]
[1748959507195,6.79,2622.9,2622.4,3.81320784]
[1748959507513,6.79,2622.9,2622.4,11.80039282]
[1748959507710,6.79,2622.9,2622.5,3.81304195]
[1748959507920,6.79,2622.9,2622.2,10.0]
[1748959508123,3.83264401,2622.9,2622.2,3.81359164]
[1748959508325,0.02,2622.9,2622.5,3.81308459]
[1748959508531,0.02,2622.9,2622.4,3.81319495]
[1748959508736,0.02,2622.9,2622.4,5.37585907]
[1748959509031,0.02,2622.9,2622.4,5.37589769]
[1748959509241,0.02,2622.9,2622.1,0.60853422]
[1748959509538,3.81276765,2622.8,2622.3,3.81337035]
[1748959509840,3.83265562,2622.9,2622.3,3.81337035]
[1748959509999,0.02,2622.9,2622.2,8.0]
[1748959510200,3.81366862,2622.2,2621.8,0.60853422]
[1748959510457,3.81366862,2622.2,2621.7,0.51]
[1748959510458,3.813762,2622.1,2621.7,1.11853422]
[1748959510739,3.81385062,2622.1,2621.5,3.81460388]
[1748959511117,3.81385062,2622.1,2621.6,3.81445778]
[1748959511749,6.759,2622.4,2621.3,0.60853422]
[1748959511948,0.55,2622.3,2621.1,0.60853422]
[1748959512147,3.81473069,2621.5,2620.9,0.60853422]
[1748959512441,10.5702682,2621.8,2621.2,3.81496329]
[1748959512599,3.81397777,2622.0,2621.4,3.81462084]
[1748959512800,3.81427705,2621.8,2621.2,3.81497214]
[1748959513009,0.38139778,2622.0,2621.1,9.16802261]
[1748959513212,1.932,2622.6,2621.7,3.81425199]
[1748959513451,3.81246019,2623.0,2622.0,3.81387299]
[1748959513657,1.952,2622.9,2622.1,3.81373699]
[1748959513961,3.8131568,2622.5,2622.0,3.81385253]
[1748959514247,3.8131568,2622.5,2621.9,3.81393845]
[1748959514461,3.8131568,2622.5,2622.0,3.81387024]
[1748959514662,3.81331483,2622.4,2621.9,3.8140026]
[1748959514867,3.81359497,2622.2,2621.7,3.81421603]
[1748959515178,3.81331483,2622.4,2621.8,3.81416569]
[1748959515179,3.81337557,2622.4,2621.8,3.81416569]
[1748959515478,2.50844602,2622.8,2621.9,8.56179298]
[1748959515617,6.75,2622.6,2621.9,8.56179298]
[1748959515815,5.74476334,2622.8,2622.1,3.81373708]
[1748959516018,1.932,2622.8,2622.1,3.81373708]
[1748959516216,3.81303189,2622.6,2622.1,3.8136727]
[1748959516471,1.932,2622.8,2621.9,9.16802261]
[1748959516615,1.932,2622.8,2622.0,8.91680226]
[1748959516817,3.83258173,2622.9,2622.3,3.81331733]
[1748959517022,3.81273418,2622.8,2622.3,3.81331733]
[1748959517243,3.83258315,2622.9,2622.2,3.81351115]
[1748959517451,3.81276973,2622.8,2622.3,3.81342225]
[1748959517770,0.02,2622.9,2622.3,1.76270613]
[1748959518094,3.83261515,2622.9,2622.3,1.76270613]
[1748959518230,0.02,2622.9,2622.0,8.0]
[1748959518433,3.81352173,2622.3,2621.8,4.42032873]
[1748959518671,6.746,2622.5,2621.8,8.0]
[1748959518870,0.76267984,2622.3,2621.6,0.60622963]
[1748959519013,3.81396331,2622.0,2621.5,3.81460651]
[1748959519396,3.81396331,2622.0,2621.3,5.74680992]
[1748959519397,3.81410909,2621.9,2621.3,6.35312292]
[1748959519521,3.81410909,2621.9,2621.3,5.74682234]
[1748959519722,0.76267984,2622.3,2621.3,8.0]
[1748959519982,3.81387911,2622.1,2621.5,3.8145022]
[1748959520154,3.81391263,2622.0,2621.5,3.8145022]
[1748959520363,0.4576559,2622.1,2621.3,8.0]
[1748959520708,3.81377216,2622.1,2621.6,3.81439638]
[1748959520825,3.81390473,2622.0,2621.5,3.81456515]
[1748959521168,3.81394337,2622.0,2621.5,3.8146038]
[1748959521368,3.81394672,2622.0,2621.5,3.81460468]
[1748959521534,3.81376393,2622.1,2621.6,3.81435263]
[1748959521867,3.8142475,2621.8,2621.4,8.56179298]
[1748959522171,3.8140986,2621.9,2621.4,12.37647005]
[1748959522756,3.81418987,2621.8,2621.3,3.81484506]
[1748959523122,3.81411569,2621.9,2621.3,3.81484506]
[1748959523753,3.81422776,2621.8,2621.3,3.81484506]
[1748959523957,0.76281345,2621.8,2621.1,0.60622963]
[1748959524258,3.81448929,2621.6,2621.1,3.815051]
[1748959524560,3.81438361,2621.7,2621.2,3.81503092]
[1748959525040,0.76281345,2621.8,2621.1,3.8151291]
[1748959525227,0.76281345,2621.8,2621.1,11.8151291]
[1748959525434,4.57707064,2621.8,2621.1,3.8151595]
[1748959525661,4.57707064,2621.8,2621.3,3.81479247]
[1748959526020,4.57700469,2621.8,2621.3,3.81483464]
[1748959526419,0.76281345,2621.8,2621.4,3.81471827]
[1748959526630,4.57705464,2621.8,2621.3,3.81486352]
[1748959526863,0.76281345,2621.8,2621.4,3.8147497]
[1748959527060,3.81379667,2622.1,2621.4,8.56179298]
[1748959527235,3.81379667,2622.1,2621.5,3.81447627]
[1748959527236,3.8139053,2622.0,2621.5,3.81447627]
[1748959527432,3.81403862,2621.9,2621.4,12.37647497]
[1748959527646,6.719,2622.2,2621.4,8.56179298]
[1748959527647,3.81421604,2621.8,2621.4,8.56179298]
[1748959527856,3.81373708,2622.1,2621.2,0.60631908]
[1748959528019,3.81470078,2621.5,2620.9,8.0]
[1748959528224,3.81469167,2621.5,2621.0,3.81532676]
[1748959528569,3.81482303,2621.4,2620.9,11.81541043]
[1748959528768,3.81482303,2621.4,2620.8,0.99698725]
[1748959528769,3.81512759,2621.2,2620.8,8.0]
[1748959528936,10.53157265,2621.6,2621.0,3.81533529]
[1748959529122,1.24635726,2621.5,2620.7,0.60631908]
[1748959529323,5.06100176,2621.5,2620.8,3.81553112]
[1748959529658,1.24635726,2621.5,2620.8,3.81553112]
[1748959529964,1.24635726,2621.5,2620.8,3.81557813]
[1748959530153,6.717,2621.6,2620.5,0.60631908]
[1748959530154,3.814901,2621.3,2620.5,0.60631908]
[1748959530460,0.79633573,2621.4,2620.5,3.81597679]
[1748959530659,0.79633573,2621.4,2620.5,3.81593602]
[1748959530866,0.79633573,2621.4,2620.6,3.81583362]
[1748959530867,3.81523939,2621.1,2620.6,3.81583362]
[1748959531168,3.81512064,2621.2,2620.5,3.81598476]
[1748959531471,3.81522607,2621.1,2620.6,3.81588293]
[1748959531650,3.81522607,2621.1,2620.5,3.81598998]
[1748959531851,4.27626628,2621.2,2620.5,3.81598998]
[1748959532168,4.27620409,2621.2,2620.7,3.81576068]
[1748959532462,3.81520212,2621.1,2620.6,3.81585615]
[1748959532624,4.27627363,2621.2,2620.6,3.81585615]
[1748959532828,0.8091186,2621.1,2620.3,0.98646779]
[1748959533036,3.81605903,2620.6,2620.1,0.02]
[1748959533286,3.81605903,2620.6,2620.1,3.83655143]
[1748959533651,3.81606755,2620.5,2620.1,0.02]
[1748959533850,3.81618979,2620.5,2620.1,0.02]
[1748959534046,3.81650255,2620.2,2620.1,0.02]
[1748959535960,8.593,2620.2,2620.1,0.02]
[1748959536178,1.896,2620.3,2620.1,0.02]
[1748959536377,8.592,2620.8,2620.1,0.02]
[1748959536575,0.8592,2620.7,2620.2,3.81640874]
[1748959536766,3.81577441,2620.7,2620.2,3.81643082]
[1748959536962,8.592,2620.8,2620.2,3.81643082]
[1748959536963,12.40773167,2620.8,2620.2,3.81643082]
[1748959537168,3.81551087,2620.9,2620.2,3.8164952]
[1748959537364,3.81563141,2620.8,2620.1,3.83658828]
[1748959537589,3.81563141,2620.8,2620.2,3.81635719]
[1748959537799,3.81563141,2620.8,2620.3,3.81634818]
[1748959538090,3.81556976,2620.9,2620.4,3.81612063]
[1748959538290,3.81570548,2620.8,2620.3,0.76528131]
[1748959538496,12.40335932,2621.0,2620.1,0.02]
[1748959538702,3.8159038,2620.7,2620.2,3.81645009]
[1748959538997,3.81602392,2620.6,2620.2,8.00074097]
[1748959539195,3.81613557,2620.5,2620.1,0.02]
[1748959539358,3.81593346,2620.6,2620.1,0.02]
[1748959539558,3.816087,2620.5,2620.1,0.02]
[1748959539771,3.81598737,2620.6,2620.1,0.02]
[1748959540099,0.76317809,2620.5,2620.1,0.02]
[1748959540391,0.76317809,2620.5,2620.1,3.83664634]
[1748959540583,3.81585019,2620.7,2620.2,3.81644476]
[1748959540799,12.40356782,2620.9,2620.1,3.83664634]
[1748959540800,8.588,2620.9,2620.1,0.02]
[1748959540999,8.588,2620.9,2620.2,3.81643721]
[1748959541000,3.81586206,2620.7,2620.2,3.81643721]
[1748959541201,13.726,2621.2,2620.5,8.00074097]
[1748959541401,1.896,2621.3,2620.8,8.00074097]
[1748959541615,1.896,2621.3,2620.9,3.815415]
[1748959541828,1.896,2621.3,2620.8,8.00074097]
[1748959542195,1.896,2621.3,2621.0,3.81519303]
[1748959542515,1.896,2621.3,2621.1,3.81511219]
[1748959542723,1.896,2621.3,2620.6,8.0]
[1748959542915,1.896,2621.3,2621.0,3.81527594]
[1748959543331,0.015152,2621.4,2621.2,3.81504654]
[1748959543618,0.015152,2621.4,2621.3,11.81564197]
[1748959545398,13.728,2622.3,2622.1,3.81370515]
[1748959545599,1.896,2622.5,2622.3,3.81337508]
[1748959545923,3.81283289,2622.8,2622.1,3.81373708]
[1748959546129,0.57288329,2622.7,2622.2,3.81359164]
[1748959546284,0.57288329,2622.7,2622.3,3.8133944]
[1748959546484,3.81352825,2622.3,2622.0,8.00074097]
[1748959546686,3.81300999,2622.6,2621.4,0.60475085]
[1748959546906,3.81382025,2622.1,2621.4,8.0]
[1748959547107,3.8135153,2622.3,2621.7,3.81419622]
[1748959547422,6.68,2622.4,2621.5,3.81459889]
[1748959547724,10.49334408,2622.4,2621.7,3.81428212]
[1748959547881,3.81367817,2622.2,2621.6,3.81445398]
[1748959548082,3.81375334,2622.1,2621.6,3.81445398]
[1748959548381,3.81402799,2621.9,2621.4,8.56124596]
[1748959548744,6.678,2621.9,2621.0,12.3765242]
[1748959548882,3.81439554,2621.7,2621.0,12.3765242]
[1748959549087,3.81418558,2621.8,2621.3,3.81482956]
[1748959549287,10.4920858,2621.9,2621.4,3.81474245]
[1748959549539,10.4920858,2621.9,2621.1,3.81515962]
[1748959549540,3.81449931,2621.6,2621.1,3.81515962]
[1748959549685,1.04920858,2621.8,2620.9,3.81534584]
[1748959549996,3.81467499,2621.5,2620.9,13.81534584]
[1748959550205,3.81467499,2621.5,2621.0,3.8153258]
[1748959550439,3.81503317,2621.3,2620.7,8.0]
[1748959550589,3.81491382,2621.3,2620.8,3.81562881]
[1748959550797,7.43989939,2621.5,2620.7,8.0]
[1748959551003,3.81514414,2621.2,2620.7,8.0]
[1748959551347,7.43989939,2621.5,2620.8,3.81562881]
[1748959551498,0.74398994,2621.4,2620.6,3.81585552]
[1748959551835,3.814901,2621.3,2620.3,0.60475085]
[1748959552135,3.81550339,2620.9,2620.4,11.81612702]
[1748959552308,6.673,2621.0,2620.4,11.81612702]
[1748959552506,3.81573849,2620.8,2620.3,8.0]
[1748959552709,3.81581505,2620.7,2620.1,0.62475085]
[1748959552934,0.76315535,2620.7,2620.1,0.02]
[1748959553136,6.673,2621.0,2620.1,0.02]
[1748959553292,3.81650255,2620.2,2620.1,0.02]
[1748959553912,3.81694195,2619.9,2619.2,9.16599681]
[1748959554098,3.81694195,2619.9,2619.2,12.37910028]
[1748959554300,3.81650255,2620.2,2619.5,3.81751214]
[1748959554538,3.81679879,2620.0,2619.5,3.81751214]
[1748959554723,3.81619274,2620.5,2619.5,3.81751214]
[1748959554724,8.0,2620.9,2619.6,8.56124596]
[1748959554925,1.896,2620.7,2620.3,3.81633577]
[1748959555234,5.711797,2620.7,2620.2,3.81643375]
[1748959555430,5.711797,2620.7,2620.1,3.8165704]
[1748959555633,2.84872982,2620.7,2620.0,8.56124596]
[1748959556065,3.81599028,2620.6,2619.9,8.56124596]
[1748959556361,3.81616357,2620.5,2619.9,12.378158]
[1748959556581,11.73405886,2621.9,2620.0,8.0]
[1748959556736,3.81541117,2621.0,2620.5,3.81597514]
[1748959556941,8.579,2621.6,2620.4,8.0]
[1748959557135,8.579,2621.6,2620.3,3.81623569]
[1748959557136,3.81475547,2621.4,2620.1,3.81656199]
[1748959557440,3.81564129,2620.8,2620.1,11.81659309]
[1748959557657,3.81578564,2620.7,2620.2,5.85422286]
[1748959557858,3.81578564,2620.7,2620.1,11.8165949]
[1748959558163,3.81553662,2620.9,2620.2,3.81641213]
[1748959558323,8.58,2621.0,2620.3,3.81633996]
[1748959558324,12.39537614,2621.0,2620.3,3.81633996]
[1748959558523,3.81562939,2620.8,2620.1,3.8165901]
[1748959558928,3.81562939,2620.8,2620.2,3.81650255]
[1748959559128,8.58,2621.0,2620.2,3.81650255]
[1748959559374,3.8159861,2620.6,2620.0,8.56124596]
[1748959559572,3.81615466,2620.5,2620.0,8.56124596]
[1748959560066,3.81621126,2620.4,2620.0,8.56124596]
[1748959560240,3.81587728,2620.7,2620.1,3.81656164]
[1748959560440,3.815662,2620.8,2620.2,3.81637088]
[1748959560741,3.8157096,2620.8,2620.2,3.81650255]
[1748959560956,3.8157096,2620.8,2620.3,3.81626914]
[1748959561267,3.81615355,2620.5,2619.8,0.60475085]
[1748959561467,8.574,2621.1,2620.2,3.8164987]
[1748959561633,12.38920107,2621.1,2620.1,11.81657708]
[1748959561830,3.81598466,2620.6,2620.1,11.81657708]
[1748959562070,3.81623227,2620.4,2619.9,11.81688758]
[1748959562257,3.8165845,2620.2,2619.8,8.56124596]
[1748959562577,6.676,2620.5,2619.8,1.34933302]
[1748959562762,3.81632899,2620.4,2619.9,8.0]
[1748959562973,1.885,2621.0,2619.9,8.0]
[1748959563288,3.81565301,2620.8,2620.3,11.81626532]
[1748959563492,3.81583974,2620.7,2620.3,8.0]
[1748959564189,3.81571933,2620.8,2620.3,11.81633549]
[1748959564389,3.81555616,2620.9,2620.4,3.8160999]
[1748959564616,3.81504654,2621.2,2620.3,8.0]
[1748959565100,3.81486145,2621.4,2620.6,16.56124596]
[1748959565298,1.885,2621.5,2621.0,12.37645545]
[1748959565299,3.81470629,2621.5,2621.0,12.37645545]
[1748959565501,3.81444611,2621.7,2621.1,11.81510714]
[1748959565802,6.685,2621.8,2620.3,8.0]
[1748959565995,3.81570756,2620.8,2620.3,8.0]
[1748959566300,3.81618888,2620.5,2620.3,8.0]
[1748959566601,3.81603216,2620.6,2620.1,8.0]
[1748959566787,3.81612895,2620.5,2620.1,8.0]
[1748959567184,3.8160988,2620.5,2620.3,8.0]
[1748959567397,3.81600465,2620.6,2620.3,8.0]
[1748959567566,3.81606999,2620.5,2620.3,8.0]
[1748959568295,3.81597393,2620.6,2620.3,8.0]
[1748959568599,3.81598908,2620.6,2620.3,8.0]
[1748959568772,3.81607714,2620.5,2620.3,8.0]
[1748959569301,3.81596774,2620.6,2620.1,11.81664819]
[1748959569622,3.81664821,2620.1,2619.7,1.11475085]
[1748959569933,3.81606563,2620.5,2619.5,10.45586102]
[1748959569934,3.81680911,2620.0,2619.5,14.27331944]
[1748959570118,3.8166893,2620.1,2619.6,8.0]
[1748959570292,3.81675544,2620.1,2619.6,8.0]
[1748959570600,3.81692602,2620.0,2619.6,8.0]
[1748959570934,3.81672157,2620.1,2619.6,8.0]
[1748959571075,3.81672157,2620.1,2619.6,11.81731012]
[1748959571277,3.81672157,2620.1,2619.6,8.0]
[1748959571458,3.81672157,2620.1,2619.6,11.81737332]
[1748959571659,0.38159677,2620.6,2619.6,10.42058458]
[1748959571861,8.558,2620.6,2619.8,8.0]
[1748959572059,3.81700443,2619.9,2619.4,3.81758658]
[1748959572266,12.3739559,2620.6,2619.5,8.0]
[1748959572473,3.81710238,2619.8,2619.4,8.57086102]
[1748959573011,0.76339622,2619.8,2619.1,0.02]
[1748959573181,3.81679389,2620.0,2619.3,3.81775146]
[1748959573365,3.81701698,2619.9,2619.4,12.38841169]
[1748959573569,11.71523831,2621.1,2619.4,8.57086102]
[1748959573774,3.81642104,2620.3,2619.8,8.57086102]
[1748959574005,3.81642104,2620.3,2619.8,16.57086102]
[1748959574205,10.49426478,2620.4,2619.8,16.57086102]
[1748959574405,3.8163569,2620.3,2619.8,16.57086102]
[1748959574717,9.61242648,2620.4,2619.4,8.57086102]
[1748959574917,8.565,2620.3,2619.7,8.0]
[1748959575079,3.81676415,2620.1,2619.6,3.8173585]
[1748959575374,12.3814201,2620.3,2619.5,8.0]
[1748959575375,0.96144265,2620.2,2619.5,8.0]
[1748959575581,3.81660111,2620.2,2619.7,8.0]
[1748959576076,3.8164802,2620.3,2619.7,3.81709094]
[1748959576284,1.04942648,2620.4,2619.4,8.57086102]
[1748959576493,3.81687648,2620.0,2619.4,8.57086102]
[1748959576696,3.81687648,2620.0,2619.5,3.81752217]
[1748959576894,3.81676951,2620.1,2619.4,9.87020019]
[1748959577097,3.81688188,2620.0,2619.5,3.81751544]
[1748959577389,9.04942648,2620.4,2619.4,9.87020019]
[1748959577592,1.885,2620.5,2619.8,8.57086102]
[1748959577798,3.81636381,2620.3,2619.8,12.3878608]
[1748959578816,1.885,2620.5,2619.8,8.57086102]
[1748959579114,1.885,2620.5,2619.9,0.3159]
[1748959579320,3.81653066,2620.2,2619.8,8.57086102]
[1748959579882,3.81715179,2619.8,2619.5,0.60751278]
[1748959580099,3.81715179,2619.8,2619.4,17.1783738]
[1748959580302,0.8515,2620.1,2619.4,9.1783738]
[1748959580303,3.81726976,2619.7,2619.4,9.1783738]
[1748959580503,0.8515,2620.1,2619.2,0.60751278]
[1748959580723,3.81795968,2619.2,2619.1,0.02]
[1748959581022,3.8184049,2618.9,2618.4,0.60807596]
[1748959581224,3.8183114,2619.0,2618.2,8.57086102]
[1748959581395,10.50998154,2619.2,2618.5,3.81891093]
[1748959581716,10.50998154,2619.2,2618.2,8.57086102]
[1748959581717,3.81810545,2619.1,2618.4,3.81904757]
[1748959581918,3.81847456,2618.9,2618.3,3.81927204]
[1748959582122,3.81847456,2618.9,2618.4,1.62094979]
[1748959582426,3.81854632,2618.8,2618.1,0.02]
[1748959582633,3.81935617,2618.3,2618.1,0.02]
[1748959582925,3.81941792,2618.2,2618.1,0.02]
[1748959583900,10.50741792,2618.2,2618.1,0.02]
[1748959584100,11.9400872,2618.2,2618.1,0.02]
[1748959584627,12.4900872,2618.2,2618.1,0.02]
[1748959584938,11.9400872,2618.2,2618.1,0.02]
[1748959585087,13.8220872,2618.2,2618.1,0.02]
[1748959585588,5.2520872,2618.2,2618.1,0.02]
[1748959585787,13.8210872,2618.2,2618.1,0.02]
[1748959586226,14.3710872,2618.2,2618.1,0.02]
[1748959587006,13.8210872,2618.2,2618.1,0.02]
[1748959587438,30.94194822,2618.2,2618.1,0.02]
[1748959587742,30.94194822,2618.2,2617.1,0.02]
[1748959587743,3.82087727,2617.2,2617.1,0.02]
[1748959587916,12.40387727,2617.2,2617.1,0.02]
[1748959588566,12.40187727,2617.2,2617.1,0.02]
[1748959589135,3.82074587,2617.3,2617.1,0.02]
[1748959589136,3.82081275,2617.3,2617.1,0.02]
[1748959589336,3.82087727,2617.2,2617.1,0.02]
[1748959590356,13.16502929,2617.2,2617.1,0.02]
[1748959590559,12.39887727,2617.2,2617.1,0.02]
[1748959590762,13.737,2617.8,2617.1,0.02]
[1748959590763,1.887,2617.3,2617.1,0.02]
[1748959590942,3.82080469,2617.3,2617.1,0.02]
[1748959591257,6.697,2617.3,2617.1,0.02]
[1748959591753,3.82087727,2617.2,2617.1,0.02]
[1748959591934,5.25473983,2617.2,2617.1,0.02]
[1748959592136,1.43386256,2617.2,2617.1,0.02]
[1748959592383,10.52161673,2617.4,2617.1,0.02]
[1748959592540,17.55708295,2617.8,2617.1,0.02]
[1748959592738,3.8200922,2617.8,2617.2,3.82077809]
[1748959592943,10.52209016,2617.8,2617.2,3.82077809]
[1748959593128,6.703,2617.7,2617.2,3.82077809]
[1748959593329,6.703,2618.0,2617.2,0.76618502]
[1748959593632,3.81961575,2618.1,2617.5,3.82043059]
[1748959593848,5.71405033,2618.5,2617.8,3.819897]
[1748959594172,3.81984219,2618.0,2617.3,3.82073128]
[1748959594476,3.8203925,2617.6,2617.1,8.02]
[1748959594702,3.81996116,2617.9,2617.1,11.84101724]
[1748959594972,3.82015976,2617.7,2617.2,1.18410172]